[Event "HUN-ch Rapid 2018"]
[Site "Ajka"]
[Date "2018.07.20"]
[Round "5"]
[White "Margl, Roland"]
[Black "Deak, Sandor"]
[Result "1/2-1/2"]
[ECO "D02"]
[WhiteElo "2047"]
[BlackElo "2335"]
[Annotator "NA"]
[PlyCount "87"]
[EventDate "2018.07.20"]
[EventType "swiss"]
[EventCountry "HUN"]
[SourceTitle "playchess.com"]
[Source "ChessBase"]
[SourceQuality "1"]
[TimeControl "1200+5"]

1. Nf3 {[%emt 0:00:02]} d5 {[%emt 0:00:05]} 2. d4 {[%emt 0:00:01]} c5 {[%emt 0:00:07]} 3. e3 {[%emt 0:00:27]} Nc6 {[%emt 0:00:32]} 4. c4 {[%emt 0:00:02]} cxd4 {[%emt 0:00:17]} 5. Nxd4 {[%emt 0:00:01]} e6 {[%emt 0:01:11]} 6. cxd5 {[%emt 0:00:28]} exd5 {[%emt 0:00:01]} 7. Nxc6 {[%emt 0:00:06]} bxc6 {[%emt 0:00:02]} 8. Qc2 {[%emt 0:00:01]} Bb7 {[%emt 0:01:31]} 9. Nd2 {[%emt 0:00:34]} Nf6 {[%emt 0:00:09]} 10. b3 {[%emt 0:00:19]} Bd6 {[%emt 0:00:43]} 11. Bb2 {[%emt 0:00:15]} O-O {[%emt 0:00:23]} 12. Bd3 {[%emt 0:00:02]} Re8 {[%emt 0:00:50]} 13. O-O {[%emt 0:00:08]} c5 {[%emt 0:01:05]} 14. Rfe1 {[%emt 0:02:50]} Rc8 {[%emt 0:02:25]} 15. Bf5 {[%emt 0:04:17]} Rc7 {[%emt 0:00:04]} 16. Rad1 {[%emt 0:01:17]} g6 {[%emt 0:02:47]} 17. Bh3 {[%emt 0:00:01]} h5 {[%emt 0:00:09]} 18. g3 {[%emt 0:01:02]} Ng4 {[%emt 0:01:48]} 19. Bg2 {[%emt 0:00:55]} h4 {[%emt 0:01:13]} 20. Nf3 {[%emt 0:00:34]} hxg3 {[%emt 0:00:09]} 21. hxg3 {[%emt 0:00:08]} Rce7 {[%emt 0:01:01]} 22. Qc3 {[%emt 0:01:36]} f6 {[%emt 0:01:15]} 23. Nh2 {[%emt 0:03:15]} Be5 {[%emt 0:00:44]} 24. Qc2 {[%emt 0:00:04]} Nxh2 {[%emt 0:00:26]} 25. Kxh2 {[%emt 0:00:24]} Bxb2 {[%emt 0:00:28]} 26. Qxb2 {[%emt 0:00:03]} Kg7 {[%emt 0:00:22]} 27. Qc3 {[%emt 0:00:35]} d4 {[%emt 0:01:04]} 28. exd4 {[%emt 0:01:54]} Rxe1 {[%emt 0:01:16]} 29. Rxe1 {[%emt 0:00:08]} Rxe1 {[%emt 0:00:01]} 30. Qxe1 {[%emt 0:00:13]} Bxg2 {[%emt 0:00:01]} 31. Kxg2 {[%emt 0:00:05]} cxd4 32. Qd2 {[%emt 0:00:16]} Qd5+ {[%emt 0:00:02]} 33. f3 {[%emt 0:00:10]} Qe5 {[%emt 0:00:02]} 34. Kf2 {[%emt 0:00:02]} g5 {[%emt 0:00:01]} 35. Qd3 {[%emt 0:00:05]} Kh6 {[%emt 0:00:03]} 36. b4 {[%emt 0:00:19]} Qd5 {[%emt 0:00:02]} 37. a3 {[%emt 0:00:02]} Qa2+ {[%emt 0:00:01]} 38. Kg1 {[%emt 0:00:07]} Qb2 {[%emt 0:00:01]} 39. Kf1 {[%emt 0:00:07]} Kg7 {[%emt 0:00:01]} 40. g4 {[%emt 0:00:03]} Kh6 {[%emt 0:00:06]} 41. Ke1 {[%emt 0:00:04]} Kg7 {[%emt 0:00:00]} 42. Kf1 {[%emt 0:00:01]} Kf7 {[%emt 0:00:12]} 43. Ke1 {[%emt 0:00:03]} Kg7 {[%emt 0:00:24]} 44. Kf1 {[%emt 0:00:02]} 1/2-1/2

[Event "HUN-ch Rapid 2018"]
[Site "Ajka"]
[Date "2018.07.20"]
[Round "5"]
[White "Koronghy, Gyula"]
[Black "Csonka, Balazs"]
[Result "1/2-1/2"]
[ECO "C55"]
[WhiteElo "2020"]
[BlackElo "2311"]
[Annotator "NA"]
[PlyCount "32"]
[EventDate "2018.07.20"]
[EventType "swiss"]
[EventCountry "HUN"]
[SourceTitle "playchess.com"]
[Source "ChessBase"]
[SourceQuality "1"]
[TimeControl "1200+5"]

1. e4 {[%emt 0:00:02]} e5 {[%emt 0:00:32]} 2. Nf3 {[%emt 0:00:04]} Nc6 {[%emt 0:00:02]} 3. Bc4 {[%emt 0:00:02]} Nf6 {[%emt 0:00:03]} 4. d4 {[%emt 0:00:14]} exd4 {[%emt 0:00:20]} 5. e5 {[%emt 0:00:01]} d5 {[%emt 0:00:04]} 6. Bb5 {[%emt 0:00:04]} Ne4 {[%emt 0:00:08]} 7. Nxd4 {[%emt 0:00:12]} Bc5 {[%emt 0:00:37]} 8. O-O {[%emt 0:00:34]} O-O {[%emt 0:00:40]} 9. Nxc6 {[%emt 0:01:03]} bxc6 {[%emt 0:00:02]} 10. Bxc6 {[%emt 0:00:01]} Ba6 {[%emt 0:00:02]} 11. Qxd5 {[%emt 0:01:30]} Bxf1 {[%emt 0:06:47]} 12. Bxa8 {[%emt 0:04:14]} Qh4 {[%emt 0:01:58]} 13. g3 {[%emt 0:00:57]} Bxf2+ {[%emt 0:05:34]} 14. Kxf1 {[%emt 0:00:52]} Qh3+ {[%emt 0:01:13]} 15. Ke2 {[%emt 0:00:03]} Qg4+ {[%emt 0:00:03]} 16. Kf1 {[%emt 0:00:32]} Qh3+ {[%emt 0:02:38]} 1/2-1/2

[Event "HUN-ch Rapid 2018"]
[Site "Ajka"]
[Date "2018.07.20"]
[Round "5"]
[White "Balogh, Marton"]
[Black "Hoang, Thanh Trang"]
[Result "0-1"]
[ECO "A80"]
[WhiteElo "1668"]
[BlackElo "2351"]
[Annotator "NA"]
[PlyCount "48"]
[EventDate "2018.07.20"]
[EventType "swiss"]
[EventCountry "HUN"]
[SourceTitle "playchess.com"]
[Source "ChessBase"]
[SourceQuality "1"]
[TimeControl "1200+5"]

1. d4 {[%emt 0:00:03]} f5 {[%emt 0:00:03]} 2. h3 {[%emt 0:00:05]} d6 {[%emt 0:02:18]} 3. g4 {[%emt 0:00:19]} Nc6 {[%emt 0:00:17]} 4. c3 {[%emt 0:02:00]} e5 {[%emt 0:00:48]} 5. Bg2 {[%emt 0:02:19]} fxg4 {[%emt 0:00:24]} 6. hxg4 {[%emt 0:00:02]} Bxg4 {[%emt 0:00:06]} 7. Qd3 {[%emt 0:00:31]} Qd7 {[%emt 0:02:39]} 8. f3 {[%emt 0:02:49]} Bf5 {[%emt 0:00:27]} 9. e4 {[%emt 0:00:03]} Bg6 {[%emt 0:00:05]} 10. Bh3 {[%emt 0:00:28]} Qd8 {[%emt 0:01:51]} 11. Be3 {[%emt 0:00:38]} d5 {[%emt 0:01:24]} 12. Nd2 {[%emt 0:01:36]} Nf6 {[%emt 0:00:28]} 13. O-O-O {[%emt 0:01:10]} Be7 {[%emt 0:00:40]} 14. Ne2 {[%emt 0:01:50]} a6 {[%emt 0:00:25]} 15. Rdg1 {[%emt 0:00:29]} Qd6 {[%emt 0:00:33]} 16. Bf5 {[%emt 0:00:56]} Bxf5 {[%emt 0:00:07]} 17. exf5 {[%emt 0:00:02]} Rg8 {[%emt 0:00:20]} 18. Bg5 {[%emt 0:01:39]} O-O-O {[%emt 0:00:41]} 19. Bxf6 {[%emt 0:00:15]} Bxf6 {[%emt 0:00:29]} 20. Rxh7 {[%emt 0:00:19]} exd4 {[%emt 0:00:27]} 21. cxd4 {[%emt 0:00:28]} Rge8 {[%emt 0:00:29]} 22. a3 {[%emt 0:00:33]} Rd7 {[%emt 0:00:37]} 23. Nb3 {[%emt 0:01:16]} Rde7 {[%emt 0:00:01]} 24. Rg2 {[%emt 0:00:24]} Re3 {[%emt 0:00:19]} 0-1

[Event "HUN-ch Rapid 2018"]
[Site "Ajka"]
[Date "2018.07.21"]
[Round "6"]
[White "Jakab, Attila"]
[Black "Volosin, Vladimir"]
[Result "1-0"]
[ECO "D12"]
[WhiteElo "2363"]
[BlackElo "2250"]
[Annotator "NA RC"]
[PlyCount "87"]
[EventDate "2018.07.20"]
[EventType "swiss"]
[EventCountry "HUN"]
[SourceTitle "playchess.com"]
[Source "ChessBase"]
[SourceQuality "1"]
[TimeControl "1200+5"]

1. d4 {[%emt 0:00:02]} c6 {[%emt 0:00:48]} 2. c4 {[%emt 0:00:03]} d5 {[%emt 0:00:01]} 3. Nf3 {[%emt 0:00:02]} Nf6 {[%emt 0:00:01]} 4. e3 {[%emt 0:00:02]} Bf5 {[%emt 0:00:06]} 5. Bd3 {[%emt 0:00:03]} Bg6 {[%emt 0:00:02]} 6. O-O {[%emt 0:00:06]} e6 {[%emt 0:00:01]} 7. Nc3 {[%emt 0:00:03]} Be7 {[%emt 0:00:08]} 8. Qe2 {[%emt 0:00:03]} Nbd7 {[%emt 0:00:04]} 9. e4 {[%emt 0:00:21]} dxe4 {[%emt 0:00:03]} 10. Nxe4 Nxe4 {[%emt 0:00:06]} 11. Bxe4 {[%emt 0:00:06]} Nf6 {[%emt 0:00:15]} 12. Bxg6 {[%emt 0:00:03]} hxg6 {[%emt 0:00:02]} 13. Bf4 {[%emt 0:00:24]} O-O {[%emt 0:00:44]} 14. Rad1 {[%emt 0:00:03]} Qa5 {[%emt 0:00:36]} 15. b3 {[%emt 0:00:10]} Rfe8 {[%emt 0:01:19]} 16. Rd3 {[%emt 0:00:12]} c5 {[%emt 0:00:43]} 17. Rfd1 {[%emt 0:00:51]} cxd4 {[%emt 0:00:28]} 18. Nxd4 {[%emt 0:00:07]} Bc5 {[%emt 0:00:34]} 19. Nb5 {[%emt 0:00:26]} e5 {[%emt 0:00:15]} 20. Be3 {[%emt 0:00:07]} e4 {[%emt 0:00:39]} 21. R3d2 {[%emt 0:00:09]} Bb4 {[%emt 0:00:42]} 22. Rc2 {[%emt 0:01:52]} a6 {[%emt 0:00:12]} 23. Nd6 {[%emt 0:00:42]} Bxd6 {[%emt 0:00:58]} 24. Rxd6 {[%emt 0:00:01]} Qe5 {[%emt 0:00:39]} 25. Rcd2 {[%emt 0:00:08]} Re6 {[%emt 0:00:28]} 26. R6d4 {[%emt 0:00:17]} Rae8 {[%emt 0:00:50]} 27. h3 {[%emt 0:00:02]} b5 {[%emt 0:00:43]} 28. b4 {[%emt 0:01:42]} bxc4 {[%emt 0:00:20]} 29. Qxc4 {[%emt 0:00:03]} Qb5 {[%emt 0:00:17]} 30. Qb3 {[%emt 0:00:09]} Rc6 {[%emt 0:00:19]} 31. a4 {[%emt 0:01:13]} Rc1+ {[%emt 0:00:24]} 32. Rd1 {[%emt 0:00:02]} Rxd1+ {[%emt 0:00:16]} 33. Rxd1 {[%emt 0:00:03]} Qe2 {[%emt 0:00:31]} 34. b5 {[%emt 0:00:08]} axb5 {[%emt 0:00:17]} 35. axb5 {[%emt 0:00:02]} Re5 {[%emt 0:00:12]} 36. b6 {[%emt 0:00:12]} Rb5 {[%emt 0:00:06]} 37. Rd8+ {[%emt 0:01:48]} Kh7 {[%emt 0:00:02]} 38. Qxf7 {[%emt 0:00:03]} Rb1+ {[%emt 0:01:29]} 39. Kh2 {[%emt 0:00:02]} Qh5 {[%emt 0:00:11]} 40. Qe6 {[%emt 0:06:32]} Qb5 {[%emt 0:01:39]} 41. Bd4 {[%emt 0:00:42]} Qg5 {[%emt 0:00:48]} 42. Qc8 {[%emt 0:00:23]} Qf4+ {[%emt 0:03:51]} 43. g3 {[%emt 0:00:03]} Ng4+ {[%emt 0:00:04]} 44. Qxg4 1-0

[Event "HUN-ch Rapid 2018"]
[Site "Ajka"]
[Date "2018.07.21"]
[Round "6"]
[White "Deak, Sandor"]
[Black "Sarok, Peter"]
[Result "1-0"]
[ECO "D31"]
[WhiteElo "2335"]
[BlackElo "2105"]
[Annotator "NA RC"]
[PlyCount "107"]
[EventDate "2018.07.20"]
[EventType "swiss"]
[EventCountry "HUN"]
[SourceTitle "playchess.com"]
[Source "ChessBase"]
[SourceQuality "1"]
[TimeControl "1200+5"]

1. d4 {[%emt 0:06:35]} d5 2. c4 {[%emt 0:00:01]} e6 {[%emt 0:00:07]} 3. Nc3 {[%emt 0:00:01]} c6 {[%emt 0:00:04]} 4. cxd5 {[%emt 0:00:04]} exd5 {[%emt 0:00:03]} 5. Nf3 {[%emt 0:00:01]} Be7 {[%emt 0:00:13]} 6. Qc2 {[%emt 0:00:12]} Nd7 {[%emt 0:00:19]} 7. Bf4 {[%emt 0:00:03]} Ngf6 {[%emt 0:00:07]} 8. e3 {[%emt 0:00:01]} Nf8 {[%emt 0:00:26]} 9. Bd3 {[%emt 0:00:02]} Ne6 {[%emt 0:00:37]} 10. Be5 {[%emt 0:00:28]} h6 {[%emt 0:00:30]} 11. O-O {[%emt 0:00:02]} O-O {[%emt 0:00:14]} 12. Bxf6 {[%emt 0:00:03]} Bxf6 {[%emt 0:00:04]} 13. b4 {[%emt 0:00:01]} a6 {[%emt 0:01:33]} 14. a4 {[%emt 0:00:03]} Qd6 {[%emt 0:01:27]} 15. Rfb1 {[%emt 0:03:14]} Bd7 {[%emt 0:00:38]} 16. a5 {[%emt 0:00:01]} Ng5 {[%emt 0:02:37]} 17. Nd2 {[%emt 0:00:01]} Rad8 {[%emt 0:00:36]} 18. Na4 {[%emt 0:00:02]} Rfe8 {[%emt 0:00:30]} 19. Nc5 {[%emt 0:00:01]} Bc8 {[%emt 0:00:08]} 20. Bf5 {[%emt 0:00:00]} Bxf5 {[%emt 0:02:09]} 21. Qxf5 {[%emt 0:00:03]} g6 {[%emt 0:00:28]} 22. Qd3 {[%emt 0:00:18]} Re7 {[%emt 0:00:08]} 23. Ra2 {[%emt 0:00:46]} h5 {[%emt 0:00:08]} 24. Rc2 {[%emt 0:00:31]} Rde8 {[%emt 0:00:16]} 25. Rbc1 {[%emt 0:00:02]} Ra8 {[%emt 0:00:32]} 26. Nxb7 {[%emt 0:00:56]} Rxb7 {[%emt 0:00:06]} 27. Rxc6 {[%emt 0:00:01]} Qe7 {[%emt 0:00:06]} 28. Rxa6 {[%emt 0:01:36]} Rxa6 {[%emt 0:00:12]} 29. Qxa6 {[%emt 0:00:01]} Rxb4 {[%emt 0:00:16]} 30. Qa8+ {[%emt 0:00:03]} Kh7 {[%emt 0:00:21]} 31. Qxd5 {[%emt 0:00:02]} Rb2 {[%emt 0:01:03]} 32. Nc4 {[%emt 0:00:47]} Ra2 {[%emt 0:02:41]} 33. Rb1 {[%emt 0:01:21]} Qb4 {[%emt 0:00:50]} 34. Rf1 {[%emt 0:01:04]} Qb3 {[%emt 0:00:04]} 35. h4 {[%emt 0:01:15]} Ne6 {[%emt 0:00:27]} 36. g3 {[%emt 0:00:50]} Rc2 {[%emt 0:00:30]} 37. Nb6 {[%emt 0:00:00]} Qa2 {[%emt 0:01:19]} 38. Qf3 {[%emt 0:00:05]} Kg7 {[%emt 0:00:05]} 39. Nd5 {[%emt 0:00:05]} Bd8 {[%emt 0:00:02]} 40. Qe4 {[%emt 0:00:01]} Rb2 {[%emt 0:00:38]} 41. Qe5+ {[%emt 0:00:08]} Kg8 {[%emt 0:00:05]} 42. Nf6+ {[%emt 0:01:03]} Bxf6 {[%emt 0:00:03]} 43. Qxf6 {[%emt 0:00:00]} Rb1 {[%emt 0:00:11]} 44. Qe5 {[%emt 0:00:02]} Rxf1+ {[%emt 0:00:04]} 45. Kxf1 {[%emt 0:00:00]} Qc4+ {[%emt 0:00:16]} 46. Kg1 {[%emt 0:00:02]} Nc7 {[%emt 0:00:06]} 47. Kh2 {[%emt 0:00:13]} Qc2 {[%emt 0:00:06]} 48. Kg2 {[%emt 0:00:03]} Qc4 {[%emt 0:00:03]} 49. e4 {[%emt 0:00:04]} Ne6 {[%emt 0:00:04]} 50. d5 {[%emt 0:00:04]} Nc5 {[%emt 0:00:02]} 51. d6 {[%emt 0:00:26]} Qb5 {[%emt 0:00:32]} 52. Qd5 {[%emt 0:00:08]} Qxa5 {[%emt 0:00:06]} 53. d7 {[%emt 0:00:04]} Qc7 {[%emt 0:00:07]} 54. d8=Q+ 1-0

[Event "HUN-ch Rapid 2018"]
[Site "Ajka"]
[Date "2018.07.21"]
[Round "6"]
[White "Csonka, Balazs"]
[Black "Margl, Roland"]
[Result "1-0"]
[ECO "D02"]
[WhiteElo "2311"]
[BlackElo "2047"]
[Annotator "NA"]
[PlyCount "59"]
[EventDate "2018.07.20"]
[EventType "swiss"]
[EventCountry "HUN"]
[SourceTitle "playchess.com"]
[Source "ChessBase"]
[SourceQuality "1"]
[TimeControl "1200+5"]

1. d4 {[%emt 0:00:04]} d5 {[%emt 0:00:01]} 2. Nf3 {[%emt 0:00:03]} Nf6 {[%emt 0:00:02]} 3. c4 {[%emt 0:00:02]} e6 {[%emt 0:00:01]} 4. g3 {[%emt 0:00:10]} Bb4+ {[%emt 0:00:03]} 5. Bd2 {[%emt 0:03:02]} Be7 {[%emt 0:00:02]} 6. Bg2 {[%emt 0:00:02]} O-O {[%emt 0:00:03]} 7. O-O {[%emt 0:00:04]} c6 {[%emt 0:00:02]} 8. Bf4 {[%emt 0:00:17]} Nbd7 {[%emt 0:00:40]} 9. Nc3 {[%emt 0:00:05]} dxc4 {[%emt 0:01:53]} 10. e4 {[%emt 0:00:02]} b5 {[%emt 0:00:41]} 11. d5 {[%emt 0:00:04]} Nxe4 {[%emt 0:05:13]} 12. d6 {[%emt 0:04:45]} Bf6 {[%emt 0:02:28]} 13. Nxe4 {[%emt 0:00:05]} Bxb2 {[%emt 0:02:13]} 14. Rb1 {[%emt 0:00:47]} Ba3 {[%emt 0:00:32]} 15. Nd4 {[%emt 0:05:34]} Bb7 {[%emt 0:00:52]} 16. Bg5 {[%emt 0:01:02]} Qb6 {[%emt 0:01:58]} 17. Nc2 {[%emt 0:01:07]} Bc5 {[%emt 0:00:35]} 18. Nxc5 {[%emt 0:01:13]} Qxc5 {[%emt 0:00:05]} 19. Be7 {[%emt 0:00:07]} Rfc8 {[%emt 0:00:01]} 20. Qd4 {[%emt 0:00:56]} Qxd4 {[%emt 0:02:03]} 21. Nxd4 {[%emt 0:00:02]} a6 {[%emt 0:00:01]} 22. Rfe1 {[%emt 0:01:20]} Rab8 {[%emt 0:00:25]} 23. Bh3 {[%emt 0:00:04]} Nc5 {[%emt 0:01:11]} 24. d7 {[%emt 0:00:18]} Nxd7 {[%emt 0:00:01]} 25. Nxe6 {[%emt 0:00:02]} Re8 {[%emt 0:00:12]} 26. Nc7 {[%emt 0:00:34]} Rec8 {[%emt 0:00:31]} 27. Bxd7 {[%emt 0:00:12]} Rxc7 {[%emt 0:00:01]} 28. Bd6 {[%emt 0:00:01]} Rxd7 {[%emt 0:00:01]} 29. Bxb8 {[%emt 0:00:02]} f6 {[%emt 0:00:02]} 30. Rbd1 {[%emt 0:00:07]} 1-0

[Event "HUN-ch Rapid 2018"]
[Site "Ajka"]
[Date "2018.07.21"]
[Round "6"]
[White "Egresi, Mate"]
[Black "Bagi, Mate"]
[Result "0-1"]
[ECO "A61"]
[WhiteElo "2280"]
[BlackElo "2394"]
[Annotator "NA RC"]
[PlyCount "66"]
[EventDate "2018.07.20"]
[EventType "swiss"]
[EventCountry "HUN"]
[SourceTitle "playchess.com"]
[Source "ChessBase"]
[SourceQuality "1"]
[TimeControl "1200+5"]

1. d4 {[%emt 0:00:02]} Nf6 {[%emt 0:00:03]} 2. c4 {[%emt 0:00:03]} c5 {[%emt 0:00:15]} 3. d5 {[%emt 0:00:06]} e6 {[%emt 0:00:03]} 4. Nc3 {[%emt 0:00:02]} exd5 {[%emt 0:00:01]} 5. cxd5 {[%emt 0:00:02]} d6 {[%emt 0:00:03]} 6. Nf3 {[%emt 0:00:01]} g6 {[%emt 0:00:07]} 7. Nd2 {[%emt 0:00:03]} Nbd7 {[%emt 0:00:08]} 8. e4 {[%emt 0:00:08]} Bg7 {[%emt 0:00:04]} 9. Be2 {[%emt 0:00:07]} O-O {[%emt 0:00:03]} 10. O-O {[%emt 0:00:03]} Re8 {[%emt 0:00:29]} 11. Qc2 {[%emt 0:00:18]} Ne5 {[%emt 0:00:16]} 12. h3 {[%emt 0:00:16]} g5 {[%emt 0:00:21]} 13. Nf3 {[%emt 0:01:07]} Nxf3+ {[%emt 0:01:00]} 14. Bxf3 {[%emt 0:00:03]} g4 {[%emt 0:00:53]} 15. hxg4 {[%emt 0:00:13]} Nxg4 {[%emt 0:00:35]} 16. Bf4 {[%emt 0:01:19]} a6 {[%emt 0:01:28]} 17. a4 {[%emt 0:00:03]} Qf6 {[%emt 0:00:34]} 18. Qd2 {[%emt 0:05:02]} Qg6 {[%emt 0:00:25]} 19. Ra3 {[%emt 0:00:55]} Ne5 {[%emt 0:00:31]} 20. Be2 {[%emt 0:00:35]} f5 {[%emt 0:00:55]} 21. exf5 {[%emt 0:00:49]} Bxf5 {[%emt 0:00:04]} 22. Nd1 {[%emt 0:00:16]} Kh8 {[%emt 0:01:14]} 23. Rg3 {[%emt 0:00:18]} Qf7 {[%emt 0:00:04]} 24. Ne3 {[%emt 0:01:27]} Bd7 {[%emt 0:02:12]} 25. Ng4 {[%emt 0:02:25]} Nxg4 {[%emt 0:01:17]} 26. Bxg4 {[%emt 0:00:06]} Bxg4 {[%emt 0:00:02]} 27. Rxg4 {[%emt 0:00:04]} Re4 {[%emt 0:00:03]} 28. g3 {[%emt 0:01:24]} Rd4 {[%emt 0:00:29]} 29. Qc2 {[%emt 0:00:02]} Rxd5 {[%emt 0:00:40]} 30. Kg2 {[%emt 0:01:36]} Rh5 {[%emt 0:01:06]} 31. Bxd6 {[%emt 0:01:08]} Qd7 {[%emt 0:03:05]} 32. Qd1 {[%emt 0:00:23]} Qc6+ {[%emt 0:00:34]} 33. f3 {[%emt 0:00:19]} Rd5 {[%emt 0:00:07]} 0-1

[Event "HUN-ch Rapid 2018"]
[Site "Ajka"]
[Date "2018.07.21"]
[Round "6"]
[White "Miszler, Levente"]
[Black "Galyas, Miklos"]
[Result "0-1"]
[ECO "A04"]
[WhiteElo "1809"]
[BlackElo "2382"]
[Annotator "NA RC"]
[PlyCount "68"]
[EventDate "2018.07.20"]
[EventType "swiss"]
[EventCountry "HUN"]
[SourceTitle "playchess.com"]
[Source "ChessBase"]
[SourceQuality "1"]
[TimeControl "1200+5"]

1. Nf3 {[%emt 0:00:03]} d6 {[%emt 0:00:35]} 2. c4 {[%emt 0:00:03]} e5 {[%emt 0:00:09]} 3. d3 {[%emt 0:00:03]} f5 {[%emt 0:00:05]} 4. g3 {[%emt 0:00:03]} Nf6 {[%emt 0:00:01]} 5. Bg2 {[%emt 0:00:02]} g6 {[%emt 0:00:01]} 6. Nc3 {[%emt 0:00:04]} Bg7 {[%emt 0:00:02]} 7. O-O {[%emt 0:00:03]} O-O {[%emt 0:00:03]} 8. Rb1 {[%emt 0:00:06]} a5 {[%emt 0:00:31]} 9. a3 {[%emt 0:00:02]} Nc6 {[%emt 0:00:27]} 10. b4 {[%emt 0:00:10]} axb4 {[%emt 0:00:01]} 11. axb4 {[%emt 0:00:01]} Kh8 {[%emt 0:00:01]} 12. b5 {[%emt 0:01:08]} Ne7 {[%emt 0:00:01]} 13. Nd2 {[%emt 0:00:16]} h6 {[%emt 0:01:36]} 14. Bb2 {[%emt 0:01:09]} g5 {[%emt 0:00:05]} 15. Ra1 {[%emt 0:00:51]} Rb8 {[%emt 0:00:05]} 16. Qa4 {[%emt 0:00:27]} Be6 {[%emt 0:01:01]} 17. Qa7 {[%emt 0:00:31]} Qc8 {[%emt 0:00:31]} 18. Rfc1 {[%emt 0:01:09]} f4 {[%emt 0:02:56]} 19. Nde4 {[%emt 0:01:46]} Bh3 {[%emt 0:01:24]} 20. Nxf6 {[%emt 0:01:26]} Bxg2 {[%emt 0:00:47]} 21. Kxg2 {[%emt 0:00:15]} Bxf6 {[%emt 0:01:33]} 22. Nd5 {[%emt 0:00:26]} Nxd5 {[%emt 0:04:42]} 23. cxd5 {[%emt 0:00:02]} Qd7 {[%emt 0:00:42]} 24. b6 {[%emt 0:00:46]} cxb6 {[%emt 0:00:22]} 25. Qxb6 {[%emt 0:00:11]} Rbc8 {[%emt 0:00:32]} 26. Ba3 {[%emt 0:00:18]} e4 {[%emt 0:00:54]} 27. Rab1 {[%emt 0:00:59]} f3+ {[%emt 0:00:07]} 28. exf3 {[%emt 0:00:02]} exf3+ {[%emt 0:00:01]} 29. Kh1 {[%emt 0:00:01]} Be5 {[%emt 0:01:18]} 30. d4 {[%emt 0:00:42]} Bg7 {[%emt 0:00:13]} 31. Rd1 {[%emt 0:04:21]} Rc2 {[%emt 0:00:16]} 32. Rb2 {[%emt 0:00:28]} Qh3 {[%emt 0:00:01]} 33. Rg1 {[%emt 0:00:14]} Rc1 {[%emt 0:00:01]} 34. Rb1 {[%emt 0:00:08]} Qg2# {[%emt 0:00:01]} 0-1

[Event "HUN-ch Rapid 2018"]
[Site "Ajka"]
[Date "2018.07.21"]
[Round "6"]
[White "Udvardi, Zalan"]
[Black "Papp, Gellert"]
[Result "0-1"]
[ECO "B22"]
[WhiteElo "1795"]
[BlackElo "2324"]
[Annotator "NA"]
[PlyCount "74"]
[EventDate "2018.07.20"]
[EventType "swiss"]
[EventCountry "HUN"]
[SourceTitle "playchess.com"]
[Source "ChessBase"]
[SourceQuality "1"]
[TimeControl "1200+5"]

1. e4 {[%emt 0:00:19]} c5 {[%emt 0:01:51]} 2. c3 {[%emt 0:00:05]} d6 {[%emt 0:00:08]} 3. d4 {[%emt 0:00:05]} Nf6 {[%emt 0:00:01]} 4. Bd3 {[%emt 0:00:30]} g6 {[%emt 0:00:01]} 5. Nf3 {[%emt 0:00:12]} Bg7 {[%emt 0:00:04]} 6. h3 {[%emt 0:01:05]} O-O {[%emt 0:00:03]} 7. Be3 {[%emt 0:00:01]} Na6 {[%emt 0:03:31]} 8. a3 {[%emt 0:05:14]} b6 {[%emt 0:01:21]} 9. Qe2 {[%emt 0:00:10]} Nc7 {[%emt 0:00:06]} 10. O-O {[%emt 0:00:05]} Bb7 {[%emt 0:00:05]} 11. Nbd2 {[%emt 0:00:08]} Nh5 {[%emt 0:02:58]} 12. Rad1 {[%emt 0:03:19]} e5 {[%emt 0:01:55]} 13. dxe5 {[%emt 0:00:40]} dxe5 {[%emt 0:00:02]} 14. Nc4 {[%emt 0:00:10]} Qe7 {[%emt 0:00:05]} 15. b4 {[%emt 0:02:08]} Ne6 {[%emt 0:01:20]} 16. g3 {[%emt 0:00:33]} cxb4 {[%emt 0:00:20]} 17. cxb4 {[%emt 0:00:34]} Nd4 {[%emt 0:01:24]} 18. Nxd4 {[%emt 0:01:04]} exd4 {[%emt 0:00:02]} 19. Bc1 {[%emt 0:00:02]} Rae8 {[%emt 0:00:34]} 20. Rfe1 {[%emt 0:01:06]} Qd7 {[%emt 0:02:19]} 21. Qg4 {[%emt 0:02:35]} f5 {[%emt 0:00:08]} 22. exf5 {[%emt 0:00:23]} Qd5 {[%emt 0:00:01]} 23. f3 {[%emt 0:00:38]} Nf6 {[%emt 0:00:06]} 24. Qf4 {[%emt 0:00:19]} g5 {[%emt 0:00:49]} 25. Qd2 {[%emt 0:00:31]} Qxf3 {[%emt 0:00:01]} 26. Qh2 {[%emt 0:00:02]} Rxe1+ {[%emt 0:00:04]} 27. Rxe1 {[%emt 0:00:01]} Qxd3 {[%emt 0:00:01]} 28. Nd6 {[%emt 0:00:03]} Ba8 {[%emt 0:00:21]} 29. Bxg5 {[%emt 0:00:01]} Qf3 {[%emt 0:00:36]} 30. Rf1 {[%emt 0:00:15]} Qd5 {[%emt 0:00:03]} 31. g4 {[%emt 0:00:03]} Rd8 {[%emt 0:00:12]} 32. Bf4 {[%emt 0:00:06]} Bf8 {[%emt 0:00:01]} 33. g5 {[%emt 0:00:07]} Nh5 {[%emt 0:00:09]} 34. g6 {[%emt 0:00:06]} Nxf4 {[%emt 0:00:08]} 35. gxh7+ {[%emt 0:00:08]} Kh8 {[%emt 0:00:06]} 36. Rxf4 {[%emt 0:00:06]} Bxd6 {[%emt 0:00:03]} 37. Qg3 {[%emt 0:00:04]} Bxf4 0-1

[Event "HUN-ch Rapid 2018"]
[Site "Ajka"]
[Date "2018.07.21"]
[Round "6"]
[White "Mako, Zoltan"]
[Black "Martini, Balazs"]
[Result "0-1"]
[ECO "B32"]
[WhiteElo "1782"]
[BlackElo "2295"]
[Annotator "NA"]
[PlyCount "68"]
[EventDate "2018.07.20"]
[EventType "swiss"]
[EventCountry "HUN"]
[SourceTitle "playchess.com"]
[Source "ChessBase"]
[SourceQuality "1"]
[TimeControl "1200+5"]

1. e4 {[%emt 0:00:00]} c5 {[%emt 0:01:21]} 2. Nf3 {[%emt 0:00:05]} Nc6 {[%emt 0:00:01]} 3. d4 {[%emt 0:00:09]} cxd4 {[%emt 0:00:03]} 4. Nxd4 {[%emt 0:00:02]} e5 {[%emt 0:00:01]} 5. Nb5 {[%emt 0:00:17]} d6 {[%emt 0:00:02]} 6. N1c3 {[%emt 0:00:18]} a6 {[%emt 0:00:03]} 7. Na3 {[%emt 0:00:03]} b5 {[%emt 0:00:02]} 8. Nd5 {[%emt 0:00:17]} Nge7 {[%emt 0:00:04]} 9. c4 {[%emt 0:01:42]} Nd4 {[%emt 0:00:02]} 10. Be3 {[%emt 0:00:34]} Nxd5 {[%emt 0:00:11]} 11. Bxd4 {[%emt 0:02:22]} Qa5+ {[%emt 0:01:17]} 12. Qd2 {[%emt 0:00:05]} Qxd2+ {[%emt 0:00:05]} 13. Kxd2 {[%emt 0:00:02]} Nf6 {[%emt 0:00:01]} 14. Be3 {[%emt 0:01:29]} Nxe4+ {[%emt 0:00:04]} 15. Ke1 {[%emt 0:00:02]} b4 {[%emt 0:02:34]} 16. Nc2 {[%emt 0:00:03]} a5 {[%emt 0:00:06]} 17. Rd1 {[%emt 0:01:31]} Be7 {[%emt 0:01:06]} 18. c5 {[%emt 0:03:53]} Nxc5 {[%emt 0:02:55]} 19. Bxc5 {[%emt 0:00:02]} dxc5 {[%emt 0:00:02]} 20. Bb5+ {[%emt 0:00:01]} Kf8 {[%emt 0:00:01]} 21. Ne3 {[%emt 0:00:16]} Ba6 {[%emt 0:02:23]} 22. Ba4 {[%emt 0:00:19]} Rd8 {[%emt 0:01:48]} 23. Nd5 {[%emt 0:00:51]} f6 {[%emt 0:02:03]} 24. f4 {[%emt 0:03:58]} exf4 {[%emt 0:01:06]} 25. Nxf4 {[%emt 0:00:07]} Kf7 {[%emt 0:00:08]} 26. Kf2 {[%emt 0:00:22]} Bd6 {[%emt 0:01:13]} 27. Nd5 {[%emt 0:01:00]} Be5 {[%emt 0:00:07]} 28. Rd2 {[%emt 0:00:22]} Bc4 {[%emt 0:01:10]} 29. Bc6 {[%emt 0:00:14]} Rd6 {[%emt 0:00:24]} 30. b3 {[%emt 0:00:37]} Ba6 {[%emt 0:00:02]} 31. Ba4 {[%emt 0:00:56]} Rhd8 {[%emt 0:00:07]} 32. Rhd1 {[%emt 0:00:02]} Bc3 {[%emt 0:00:21]} 33. Nxc3 {[%emt 0:00:27]} Rxd2+ {[%emt 0:00:11]} 34. Rxd2 {[%emt 0:00:01]} Rxd2+ {[%emt 0:00:01]} 0-1